fUSD/lending_fUSD_20251027
["ID","MTS","AMOUNT","RATE_DAILY","PERIOD"]
[392484079,1761556025039,195.0,0.00028195,120]
[392484080,1761556025423,195.0,0.00028273,120]
[392484081,1761556026405,300.0,0.00030973,120]
[392484083,1761556086284,195.0,0.00030887,120]
[392484084,1761556086418,195.0,0.00028085,120]
[392484085,1761556086541,195.0,0.00028229,120]
[392484088,1761556142122,195.0,0.00030563,120]
[392484089,1761556150148,-4750.36086,0.00027784,2]
[392484090,1761556151118,-3419.99765,0.00027784,2]
[392484091,1761556151139,-618.88447645,0.00027824,2]
[392484092,1761556151163,-160.0,0.00027925,2]
[392484093,1761556151186,-369.90300718,0.00028326,2]
[392484094,1761556151206,-300.0,0.0002835,2]
[392484095,1761556151228,-1200.0,0.00028351,2]
[392484096,1761556151249,-1200.0,0.00028352,2]
[392484097,1761556151268,-1234.59299744,0.00028471,2]
[392484098,1761556151288,-1560.19367643,0.00028496,60]
[392484099,1761556151307,-2000.0,0.0002857,2]
[392484100,1761556151326,-500.0,0.00028571,2]
[392484101,1761556151345,-170.80410494,0.00028571,2]
[392484102,1761556151368,-496.37761296,0.00028571,2]
[392484103,1761556151391,-725.1805805,0.00028571,2]
[392484104,1761556151412,-500.0,0.00028571,2]
[392484105,1761556151434,-725.1805805,0.00028571,2]
[392484106,1761556151453,-500.0,0.00028571,2]
[392484107,1761556151661,-725.1805805,0.00028571,2]
[392484108,1761556151689,-725.1805805,0.00028571,2]
[392484109,1761556151709,-356.84501563,0.00028571,2]
[392484110,1761556151735,-725.1805805,0.00028571,2]
[392484111,1761556151760,-725.1805805,0.00028571,2]
[392484112,1761556151781,-725.1805805,0.00028571,2]
[392484113,1761556151802,-725.1805805,0.00028571,2]
[392484114,1761556151824,-725.1805805,0.00028571,2]
[392484115,1761556151845,-725.1805805,0.00028571,2]
[392484116,1761556151866,-725.1805805,0.00028571,2]
[392484117,1761556151887,-725.1805805,0.00028571,2]
[392484118,1761556151909,-725.1805805,0.00028571,2]
[392484119,1761556151933,-725.1805805,0.00028571,2]
[392484120,1761556151959,-725.1805805,0.00028571,2]
[392484121,1761556151979,-725.1805805,0.00028571,2]
[392484122,1761556152002,-725.1805805,0.00028571,2]
[392484123,1761556152023,-725.1805805,0.00028571,2]
[392484124,1761556152044,-725.1805805,0.00028571,2]
[392484125,1761556152066,-314.65042947,0.00028571,2]
[392484127,1761556168154,-410.53015103,0.00028571,2]
[392484128,1761556168176,-725.1805805,0.00028571,2]
[392484129,1761556168198,-725.1805805,0.00028571,2]
[392484130,1761556168219,-725.1805805,0.00028571,2]
[392484131,1761556168242,-725.1805805,0.00028571,2]
[392484132,1761556168264,-725.1805805,0.00028571,2]
[392484133,1761556168286,-725.1805805,0.00028571,2]
[392484134,1761556168308,-725.1805805,0.00028571,2]
[392484135,1761556168330,-725.1805805,0.00028571,2]
[392484136,1761556168352,-725.1805805,0.00028571,2]
[392484137,1761556168373,-725.1805805,0.00028571,2]
[392484138,1761556168394,-725.1805805,0.00028571,2]
[392484139,1761556168414,-725.1805805,0.00028571,2]
[392484140,1761556168435,-725.1805805,0.00028571,2]
[392484141,1761556168456,-725.1805805,0.00028571,2]
[392484142,1761556168478,-725.1805805,0.00028571,2]
[392484143,1761556168500,-725.1805805,0.00028571,2]
[392484144,1761556168522,-725.1805805,0.00028571,2]
[392484145,1761556168544,-725.1805805,0.00028571,2]
[392484146,1761556168566,-725.1805805,0.00028571,2]
[392484147,1761556168589,-725.1805805,0.00028571,2]
[392484148,1761556168614,-725.1805805,0.00028571,2]
[392484149,1761556168635,-725.1805805,0.00028571,2]
[392484150,1761556168659,-725.1805805,0.00028571,2]
[392484151,1761556168682,-725.1805805,0.00028571,2]
[392484152,1761556168705,-725.1805805,0.00028571,2]
[392484153,1761556168728,-725.1805805,0.00028571,2]
[392484154,1761556168751,-725.1805805,0.00028571,2]
[392484155,1761556168775,-725.1805805,0.00028571,2]
[392484156,1761556168802,-725.1805805,0.00028571,2]
[392484157,1761556168826,-725.1805805,0.00028571,2]
[392484158,1761556168848,-725.1805805,0.00028571,2]
[392484159,1761556168871,-725.1805805,0.00028571,2]
[392484160,1761556168895,-725.1805805,0.00028571,2]
[392484161,1761556168916,-725.1805805,0.00028571,2]
[392484162,1761556168939,-725.1805805,0.00028571,2]
[392484163,1761556168962,-725.1805805,0.00028571,2]
[392484164,1761556168984,-725.1805805,0.00028571,2]
[392484165,1761556169006,-725.1805805,0.00028571,2]
[392484166,1761556169030,-725.1805805,0.00028571,2]
[392484167,1761556169067,-725.1805805,0.00028571,2]
[392484168,1761556169092,-725.1805805,0.00028571,2]
[392484169,1761556169115,-725.1805805,0.00028571,2]
[392484170,1761556169137,-725.1805805,0.00028571,2]
[392484171,1761556169164,-725.1805805,0.00028571,2]
[392484172,1761556169185,-725.1805805,0.00028571,2]
[392484173,1761556169209,-725.1805805,0.00028571,2]
[392484174,1761556169232,-725.1805805,0.00028571,2]
[392484175,1761556169255,-725.1805805,0.00028571,2]
[392484176,1761556169277,-725.1805805,0.00028571,2]
[392484177,1761556169299,-725.1805805,0.00028571,2]
[392484178,1761556169321,-725.1805805,0.00028571,2]
[392484179,1761556169344,-725.1805805,0.00028571,2]
[392484180,1761556169366,-725.1805805,0.00028571,2]
[392484181,1761556169387,-725.1805805,0.00028571,2]
[392484182,1761556169409,-725.1805805,0.00028571,2]
[392484183,1761556169431,-725.1805805,0.00028571,2]
[392484184,1761556169627,-725.1805805,0.00028571,2]
[392484185,1761556169649,-725.1805805,0.00028571,2]
[392484186,1761556169670,-725.1805805,0.00028571,2]
[392484187,1761556169692,-725.1805805,0.00028571,2]
[392484188,1761556169716,-725.1805805,0.00028571,2]
[392484189,1761556169738,-725.1805805,0.00028571,2]
[392484190,1761556169760,-725.1805805,0.00028571,2]
[392484191,1761556169782,-725.1805805,0.00028571,2]
[392484192,1761556169805,-725.1805805,0.00028571,2]
[392484193,1761556169828,-725.1805805,0.00028571,2]
[392484194,1761556169851,-725.1805805,0.00028571,2]
[392484195,1761556169878,-725.1805805,0.00028571,2]
[392484196,1761556169901,-200.57773497,0.00028571,2]
[392484197,1761556171099,-524.60284546,0.00028571,2]
[392484198,1761556171121,-639.35,0.00028572,14]
[392484199,1761556171143,-500.0,0.00028573,5]
[392484200,1761556171172,-500.0,0.00028573,5]
[392484201,1761556171193,-503.82369895,0.00028573,5]
[392484202,1761556171213,-222.39143095,0.00028573,5]
[392484203,1761556171234,-500.0,0.00028573,5]
[392484204,1761556171254,-500.0,0.00028573,5]
[392484205,1761556171274,-500.0,0.00028573,5]
[392484206,1761556171293,-300.0,0.00028595,2]
[392484207,1761556171313,-300.0,0.00028595,2]
[392484208,1761556171332,-3400.0,0.0002877,2]
[392484209,1761556171353,-639.35,0.00028845,14]
[392484210,1761556171376,-182.13222299,0.0002885,2]
[392484211,1761556171397,-182.13222299,0.00028859,2]
[392484212,1761556171416,-182.13222299,0.00028859,2]
[392484213,1761556171436,-2395.0,0.0002897,2]
[392484214,1761556171457,-639.35,0.00029119,14]
[392484215,1761556171479,-500.0,0.0002912,2]
[392484216,1761556171500,-199.10423743,0.0002912,2]
[392484217,1761556171519,-274.59659175,0.0002912,2]
[392484218,1761556171545,-500.0,0.0002912,2]
[392484219,1761556171568,-272.61858202,0.0002912,2]
[392484220,1761556171595,-466.71901135,0.00029121,5]
[392484221,1761556171619,-1000.0,0.00029121,5]
[392484222,1761556171641,-1000.0,0.00029121,5]
[392484223,1761556171664,-575.63777896,0.00029121,5]
[392484224,1761556171684,-1000.0,0.00029121,5]
[392484225,1761556171705,-597.02618753,0.0002915,5]
[392484226,1761556171724,-500.0,0.0002915,5]
[392484227,1761556171743,-500.0,0.0002915,2]
[392484228,1761556171762,-375.69831699,0.00029184,5]
[392484229,1761556171782,-500.0,0.00029184,5]
[392484230,1761556171800,-500.0,0.00029184,5]
[392484231,1761556171820,-500.0,0.00029184,5]
[392484232,1761556171840,-639.35,0.00029393,14]
[392484233,1761556171860,-151.0,0.00029581,2]
[392484234,1761556171878,-151.0,0.00029581,2]
[392484235,1761556171898,-151.0,0.00029581,2]
[392484236,1761556171917,-151.0,0.00029581,2]
[392484237,1761556171938,-151.0,0.00029581,2]
[392484238,1761556171957,-151.0,0.00029581,2]
[392484239,1761556171981,-151.0,0.00029581,2]
[392484240,1761556172002,-151.0,0.00029581,2]
[392484241,1761556172023,-151.0,0.00029581,2]
[392484242,1761556172059,-151.0,0.00029581,2]
[392484243,1761556172081,-151.0,0.00029581,2]
[392484244,1761556172104,-151.0,0.00029581,2]
[392484245,1761556172127,-151.0,0.00029581,2]
[392484246,1761556172151,-151.0,0.00029581,2]
[392484247,1761556172173,-151.0,0.00029581,2]
[392484248,1761556172194,-151.0,0.00029581,2]
[392484249,1761556172214,-151.0,0.00029581,2]
[392484250,1761556172235,-151.0,0.00029581,2]
[392484251,1761556172255,-151.0,0.00029581,2]
[392484252,1761556172277,-151.0,0.00029581,2]
[392484253,1761556172298,-210.52533057,0.00029581,2]
[392484254,1761556172319,-151.0,0.00029581,2]
[392484255,1761556172341,-151.0,0.00029581,2]
[392484256,1761556172361,-151.0,0.00029581,2]
[392484257,1761556172384,-151.0,0.00029581,2]
[392484258,1761556172406,-151.0,0.00029581,2]
[392484259,1761556172433,-151.0,0.00029581,2]
[392484260,1761556172465,-151.0,0.00029581,2]
[392484261,1761556172487,-151.0,0.00029581,2]
[392484262,1761556172508,-151.0,0.00029581,2]
[392484263,1761556172531,-151.0,0.00029581,2]
[392484264,1761556172552,-151.0,0.00029581,2]
[392484265,1761556172574,-151.0,0.00029581,2]
[392484266,1761556172595,-151.0,0.00029581,2]
[392484267,1761556172624,-151.0,0.00029581,2]
[392484268,1761556172646,-151.0,0.00029581,2]
[392484269,1761556172670,-151.0,0.00029581,2]
[392484270,1761556172690,-151.0,0.00029581,2]
[392484271,1761556172710,-151.0,0.00029581,2]
[392484272,1761556172732,-151.0,0.00029581,2]
[392484273,1761556172755,-151.0,0.00029581,2]
[392484274,1761556172776,-151.0,0.00029581,2]
[392484275,1761556172796,-7652.71069907,0.00029599,2]
[392484276,1761556202510,195.0,0.0003132,120]
[392484277,1761556206213,2549.45025437,0.0003132,120]
[392484288,1761556231584,-607.17949042,0.00028473,2]
[392484289,1761556231594,-607.1794904,0.00029295,2]
[392484290,1761556231603,-3121.0994756,0.00029515,2]
[392484291,1761556231612,-300.0,0.00029598,2]
[392484292,1761556231622,-300.0,0.00029598,2]
[392484293,1761556231632,-1200.0,0.00029598,2]
[392484294,1761556231641,-6351.21077353,0.00029599,2]
[392484295,1761556231661,-4839.38076664,0.00029599,2]
[392484296,1761556231671,-639.35,0.00029667,14]
[392484297,1761556231683,-1500.0,0.00029668,5]
[392484298,1761556231694,-1011.15608382,0.00029698,2]
[392484299,1761556231705,-171.46875,0.00029738,2]
[392484300,1761556231716,-639.35,0.00029941,14]
[392484301,1761556231727,-166.66666668,0.00029999,2]
[392484302,1761556231737,-224.04,0.00030081,2]
[392484303,1761556231749,-607.1794904,0.00030116,2]
[392484304,1761556231761,-530.15,0.00030164,10]
[392484305,1761556231772,-639.35,0.00030215,14]
[392484306,1761556231783,-62.11108297,0.00030216,5]
[392484307,1761556231797,-1937.88891703,0.00030216,5]
[392484308,1761556231809,-320.5,0.00030357,25]
[392484309,1761556231820,-200.0,0.00030384,2]
[392484310,1761556231831,-639.39316012,0.00030489,14]
[392484311,1761556231842,-271.4458362,0.00030563,2]
[392484312,1761556231852,-1680.0,0.00030608,2]
[392484313,1761556231862,-300.0,0.00030685,30]
[392484314,1761556231872,-162.91487332,0.00030723,2]
[392484315,1761556231882,-603.08173544,0.00030764,5]
[392484316,1761556231891,-35112.0,0.00031,2]
[392484317,1761556231901,-250.0,0.0003113,2]
[392484318,1761556231912,-250.0,0.0003132,2]
[392484319,1761556231921,-500.0,0.00031775,5]
[392484320,1761556231931,-516.6096342,0.00031775,5]
[392484321,1761556231941,-505.51960513,0.00031775,5]
[392484322,1761556231950,-500.0,0.00031775,5]
[392484323,1761556231961,-5515.0,0.000318,3]
[392484324,1761556231971,-420.0,0.00031913,2]
[392484325,1761556231980,-420.0,0.00031913,3]
[392484326,1761556231990,-278.6616471,0.00032,120]
[392484327,1761556232000,-1680.0,0.00032049,3]
[392484328,1761556232011,-1000.0,0.00032323,5]
[392484329,1761556232020,-5515.0,0.000326,5]
[392484330,1761556232030,-501.60753321,0.0003276,5]
[392484331,1761556232039,-522.86446981,0.0003276,5]
[392484332,1761556232050,-501.31085289,0.0003276,5]
[392484333,1761556232060,-503.9866007,0.0003276,5]
[392484334,1761556232069,-505.14831111,0.0003276,5]
[392484335,1761556232079,-500.0,0.0003276,5]
[392484336,1761556232088,-198.98020061,0.0003276,5]
[392484337,1761556232098,-500.0,0.0003276,5]
[392484338,1761556232108,-159.3410054,0.0003276,2]
[392484339,1761556232117,-160.38415755,0.0003276,2]
[392484341,1761556232126,-501.31671529,0.0003276,5]
[392484342,1761556232135,-299.61842392,0.0003276,3]
[392484344,1761556232145,-500.0,0.00032871,5]
[392484346,1761556232154,-500.0,0.00032876,2]
[392484347,1761556232168,-153.0,0.00032877,30]
[392484349,1761556232178,-153.0,0.00032877,30]
[392484351,1761556232187,-153.0,0.00032877,30]
[392484352,1761556232195,-153.0,0.00032877,30]
[392484354,1761556232205,-300.0,0.00032909,2]
[392484356,1761556232214,-784.0,0.00033045,3]
[392484357,1761556232223,-527.41683581,0.00033308,5]
[392484359,1761556232233,-1000.0,0.00033308,5]
[392484361,1761556232243,-150.0,0.00033312,4]
[392484363,1761556232254,-150.0,0.00033312,4]
[392484365,1761556232263,-150.0,0.00033312,4]
[392484366,1761556232273,-158.66111158,0.00033312,4]
[392484367,1761556232282,-152.22718871,0.00033312,4]
[392484368,1761556232292,-150.0,0.00033312,4]
[392484369,1761556232302,-155.10455661,0.00033312,4]
[392484370,1761556232313,-152.18926861,0.00033312,4]
[392484371,1761556232323,-286.65334943,0.00033312,4]
[392484372,1761556232333,-150.0,0.00033312,4]
[392484373,1761556232342,-153.73969324,0.00033312,4]
[392484374,1761556232353,-154.52263192,0.00033312,4]
[392484375,1761556232363,-10757.19,0.00033586,2]
[392484376,1761556232372,-507.92489372,0.00033856,5]
[392484377,1761556232382,-2000.0,0.00034,2]
[392484378,1761556232391,-443.26196235,0.00034001,2]
[392484379,1761556232401,-1600.0,0.00034142,120]
[392484380,1761556232410,-155.3903929,0.00034147,2]
[392484381,1761556232420,-587.0,0.0003441,2]
[392484382,1761556232429,-587.0,0.0003441,3]
[392484383,1761556232439,-443.26196234,0.00034418,2]
[392484384,1761556232449,-1007.80633536,0.00034599,120]
[392484385,1761556232458,-250.0,0.00034614,2]
[392484386,1761556232468,-150.0,0.00034628,2]
[392484387,1761556232478,-2351.0,0.00034704,3]
[392484388,1761556232487,-18872.3836548,0.00034795,3]
[392484389,1761556232497,-443.26196234,0.00034834,2]
[392484390,1761556232507,-378.6572,0.00034899,2]
[392484391,1761556232516,-4000.0,0.00035,120]
[392484392,1761556232527,-443.26196234,0.00035251,2]
[392484393,1761556232536,-838.51840097,0.00035559,2]
[392484394,1761556232545,-443.26196234,0.00035667,2]
[392484395,1761556232555,-152.0,0.0003572,3]
[392484396,1761556232566,-838.51840097,0.00035753,2]
[392484397,1761556232575,-503.83020433,0.0003584,5]
[392484398,1761556232586,-513.8116029,0.0003584,5]
[392484399,1761556232596,-500.0,0.0003584,5]
[392484400,1761556232605,-500.0,0.0003584,5]
[392484401,1761556232615,-500.0,0.0003584,5]
[392484402,1761556232624,-552.62690573,0.0003584,5]
[392484403,1761556232634,-500.0,0.0003584,5]
[392484404,1761556232643,-500.0,0.0003584,5]
[392484405,1761556232652,-500.0,0.0003584,5]
[392484406,1761556232662,-500.0,0.0003584,5]
[392484407,1761556232671,-500.0,0.0003584,5]
[392484408,1761556232681,-500.0,0.0003584,5]
[392484409,1761556232691,-534.98911707,0.0003584,5]
[392484410,1761556232700,-500.0,0.0003584,5]
[392484411,1761556232709,-500.0,0.0003584,5]
[392484412,1761556232719,-500.0,0.0003584,5]
[392484413,1761556232730,-503.78826332,0.0003584,5]
[392484414,1761556232739,-500.0,0.0003584,5]
[392484415,1761556232748,-838.51840097,0.00035936,2]
[392484416,1761556232758,-1917.41,0.00035945,2]
[392484417,1761556232768,-2691.42,0.00035945,2]
[392484418,1761556232777,-708.34,0.00035945,2]
[392484419,1761556232787,-509.07,0.00035995,2]
[392484420,1761556232796,-300.0,0.00036,13]
[392484421,1761556232806,-2850.000001,0.00036,2]
[392484422,1761556232816,-2383.14637859,0.00036009,2]
[392484423,1761556232825,-254.0,0.00036049,2]
[392484424,1761556232834,-443.26196234,0.00036084,2]
[392484425,1761556232844,-465.43,0.00036095,2]
[392484426,1761556232854,-476.05,0.00036095,2]
[392484427,1761556232863,-600.0,0.000361,13]
[392484428,1761556232873,-160.77470025,0.00036115,15]
[392484429,1761556232883,-2220.6109711,0.00036115,2]
[392484430,1761556232892,-18872.3836548,0.00036133,3]
[392484431,1761556232902,-501.65361066,0.00036133,5]
[392484432,1761556232911,-476.05,0.00036182,2]
[392484433,1761556232920,-697.12,0.00036182,2]
[392484434,1761556232929,-476.05,0.00036182,2]
[392484435,1761556232938,-1000.0,0.000362,13]
[392484436,1761556232948,-2220.6109711,0.00036204,2]
[392484437,1761556232957,-838.51840097,0.00036208,2]
[392484438,1761556232967,-513.0,0.00036215,2]
[392484439,1761556232975,-250.0,0.00036215,2]
[392484440,1761556232984,-250.0,0.00036215,2]
[392484441,1761556232993,-250.0,0.00036215,2]
[392484442,1761556233002,-250.0,0.00036215,2]
[392484443,1761556233011,-250.0,0.00036215,2]
[392484444,1761556233020,-250.0,0.00036215,2]
[392484445,1761556233030,-250.0,0.00036215,2]
[392484446,1761556233040,-250.0,0.00036215,2]
[392484447,1761556233049,-250.0,0.00036215,2]
[392484448,1761556233059,-250.0,0.00036215,2]
[392484449,1761556233068,-250.0,0.00036215,2]
[392484450,1761556233077,-620.0,0.00036215,2]
[392484451,1761556233086,-642.94,0.0003627,2]
[392484452,1761556233095,-2220.6109711,0.00036293,2]
[392484453,1761556233104,-1300.0,0.000363,13]
[392484454,1761556233113,-666.72878,0.00036325,2]
[392484455,1761556233123,-785.91420295,0.00036331,2]
[392484456,1761556233133,-785.91420296,0.00036331,2]
[392484457,1761556233143,-2220.6109711,0.00036382,2]
[392484458,1761556233152,-350.28314396,0.00036388,5]
[392484459,1761556233163,-1001.50130865,0.00036388,5]
[392484460,1761556233176,-500.0,0.00036388,5]
[392484461,1761556233186,-203.50130274,0.00036388,5]
[392484462,1761556233195,-1006.12795543,0.00036388,5]
[392484463,1761556233204,-684.46729657,0.00036388,5]
[392484464,1761556233214,-652.87762643,0.00036388,5]
[392484465,1761556233224,-1139.70786923,0.00036388,5]
[392484466,1761556233234,-1000.0,0.00036388,5]
[392484467,1761556233244,-1700.0,0.000364,13]
[392484468,1761556233253,-2220.6109711,0.00036471,2]
[392484469,1761556233263,-152.0,0.0003649,7]
[392484470,1761556233272,-152.0,0.0003649,7]
[392484471,1761556233282,-152.0,0.0003649,7]
[392484472,1761556233292,-209.94210905,0.0003649,7]
[392484473,1761556233302,-756.1631392,0.0003649,7]
[392484474,1761556233312,-161.34484438,0.0003649,7]
[392484475,1761556233322,-152.0,0.0003649,7]
[392484476,1761556233332,-152.0,0.0003649,7]
[392484477,1761556233342,-158.11845397,0.0003649,7]
[392484478,1761556233351,-152.0,0.0003649,7]
[392484479,1761556233361,-152.0,0.0003649,7]
[392484480,1761556233371,-152.0,0.0003649,7]
[392484481,1761556233380,-152.0,0.0003649,7]
[392484482,1761556233389,-152.0,0.0003649,7]
[392484483,1761556233400,-152.0,0.0003649,7]
[392484484,1761556233410,-152.0,0.0003649,7]
[392484485,1761556233419,-152.0,0.0003649,7]
[392484486,1761556233429,-838.51840097,0.00036494,2]
[392484487,1761556233439,-300.0,0.000365,13]
[392484488,1761556233449,-443.26196234,0.000365,2]
[392484489,1761556233459,-2220.6109711,0.00036561,2]
[392484490,1761556233468,-1008.38972952,0.00036585,2]
[392484491,1761556233478,-300.0,0.000366,13]
[392484492,1761556233487,-36539.19113314,0.0003664,4]
[392484493,1761556233501,-1205.57617646,0.0003664,4]
[392484494,1761556233624,-500.0,0.00036649,2]
[392484495,1761556233635,-2220.6109711,0.0003665,2]
[392484496,1761556233644,-22328.74715822,0.0003665,2]
[392484497,1761556233655,-20238.00278326,0.0003665,2]
[392484498,1761556233747,-602.89633906,0.0003665,2]
[392484503,1761556237704,-37111.74540563,0.0003665,2]
[392484504,1761556237714,-300.0,0.000367,13]
[392484505,1761556237723,-11257.94643118,0.00036722,4]
[392484506,1761556237862,-676.63244783,0.00036722,4]
[392484507,1761556237919,-3158.5,0.00036722,4]
[392484508,1761556237931,-1006.2910037,0.00036722,4]
[392484509,1761556237943,-2625.0,0.00036722,4]
[392484510,1761556237956,-148.01377209,0.00036722,4]
[392484511,1761556237967,-2220.6109711,0.00036739,2]
[392484512,1761556237977,-1226.0,0.000368,2]
[392484513,1761556237987,-1928.79113265,0.000368,2]
[392484514,1761556237998,-300.0,0.000368,13]
[392484515,1761556238008,-838.51840097,0.00036814,2]
[392484516,1761556238018,-2220.6109711,0.00036828,2]
[392484517,1761556238028,-1113.19877438,0.00036897,9]
[392484518,1761556238039,-825.0,0.000369,13]
[392484519,1761556238050,-18872.3836548,0.00036907,4]
[392484520,1761556238060,-252.0,0.00036916,2]
[392484521,1761556238076,-611.68444147,0.00036917,2]
[392484522,1761556238087,-163.6590327,0.00036917,10]
[392484523,1761556238098,-1454.15638338,0.00036917,2]
[392484524,1761556238109,-168.33,0.00036917,2]
[392484525,1761556238120,-205.96393188,0.00036917,7]
[392484527,1761556238131,-596.15501126,0.00036917,2]
[392484529,1761556238142,-443.26196234,0.00036917,2]
[392484531,1761556238153,-2220.6109711,0.00036917,2]
[392484532,1761556238166,-1237.0,0.00036924,5]
[392484533,1761556238177,-74975.0207533,0.0003694,2]
[392484535,1761556238188,-596.15501125,0.00036956,2]
[392484537,1761556238198,-5232.39598,0.0003696,2]
[392484539,1761556238210,-18872.3836548,0.0003698,4]
[392484540,1761556238219,-18872.3836548,0.00036987,4]
[392484542,1761556238229,-160.77470024,0.00036995,15]
[392484544,1761556238239,-500.0,0.00036995,2]
[392484546,1761556238254,-205.96393188,0.00036995,7]
[392484547,1761556238268,-596.15501125,0.00036995,2]
[392484548,1761556238285,-37744.7673096,0.00036996,4]
[392484549,1761556238299,-19515.7254467,0.00036996,4]
[392484550,1761556238311,-510.80844475,0.00036996,28]
[392484553,1761556238327,-500.0,0.00036996,28]
[392484555,1761556238342,-500.0,0.00036996,28]
[392484556,1761556238356,-500.0,0.00036996,28]
[392484557,1761556238369,-500.0,0.00036996,2]
[392484558,1761556238384,-500.0,0.00036996,2]
[392484559,1761556238397,-500.0,0.00036996,7]
[392484560,1761556238409,-500.0,0.00036996,7]
[392484561,1761556238421,-461.97201039,0.00036996,28]
[392484562,1761556238432,-500.0,0.00036996,28]
[392484563,1761556238446,-10000.0,0.00036996,120]
[392484564,1761556238460,-10000.0,0.00036996,120]
[392484565,1761556238473,-18872.3836548,0.00036996,4]
[392484566,1761556238488,-6505.24181558,0.00036996,4]
[392484567,1761556238502,-27712.02644066,0.00036997,4]
[392484586,1761556240286,-3831.36960666,0.00036997,4]
[392484587,1761556240300,-1127.17934932,0.00036997,4]
[392484588,1761556240552,-425.84246072,0.00036997,4]
[392484589,1761556240567,-348.93830026,0.00036997,4]
[392484590,1761556240581,-6109.52535877,0.00036997,4]
[392484591,1761556240660,-40281.81340075,0.00036997,4]
[392484592,1761556240673,-127759.52528586,0.00036997,4]
[392484593,1761556240685,-120346.973588,0.00036997,4]
[392484594,1761556240696,-500.0,0.00036999,28]
[392484595,1761556240707,-331.2737241,0.00036999,28]
[392484596,1761556240718,-500.0,0.00036999,2]
[392484597,1761556240729,-364.9611003,0.00037,7]
[392484598,1761556240739,-534.6380308,0.00037,31]
[392484599,1761556240750,-1713.67818555,0.00037,7]
[392484600,1761556240761,-4903.8133314,0.00037,2]
[392484602,1761556240772,-23600.22434269,0.00037,120]
[392484604,1761556240784,-677.43752035,0.00037006,10]
[392484605,1761556240796,-500.0,0.00037006,28]
[392484606,1761556240808,-500.0,0.00037006,28]
[392484607,1761556240817,-500.0,0.00037006,28]
[392484609,1761556240827,-519.19897658,0.00037006,28]
[392484610,1761556240836,-284.72877767,0.00037006,28]
[392484611,1761556240846,-555.49893252,0.00037006,28]
[392484612,1761556240855,-500.0,0.00037006,2]
[392484613,1761556240865,-180.357915,0.00037014,7]
[392484614,1761556240874,-150.0,0.00037014,7]
[392484615,1761556240883,-150.0,0.00037014,7]
[392484616,1761556240892,-166.06212231,0.00037014,7]
[392484617,1761556240902,-500.0,0.00037015,28]
[392484618,1761556240911,-500.0,0.00037015,2]
[392484619,1761556240920,-500.0,0.00037015,7]
[392484620,1761556240930,-214.65159289,0.00037015,2]
[392484621,1761556240939,-10000.0,0.00037015,120]
[392484622,1761556240949,-3884.8708525,0.00037016,2]
[392484623,1761556240959,-1466.5090256,0.00037016,2]
[392484624,1761556240968,-2503.4159719,0.00037016,2]
[392484625,1761556240980,-1306.6589315,0.00037016,2]
[392484626,1761556240991,-17137.368689,0.00037016,2]
[392484627,1761556241182,-500.0,0.00037016,28]
[392484628,1761556241193,-500.0,0.00037016,28]
[392484629,1761556241203,-500.0,0.00037016,28]
[392484630,1761556241212,-500.0,0.00037016,28]
[392484631,1761556241222,-999.486852,0.00037016,2]
[392484632,1761556241231,-48120.2855283,0.00037016,2]
[392484633,1761556241240,-500.0,0.00037016,28]
[392484634,1761556241250,-500.0,0.00037016,28]
[392484635,1761556241259,-500.0,0.00037016,28]
[392484636,1761556241268,-500.0,0.00037016,28]
[392484637,1761556241278,-500.0,0.00037016,28]
[392484638,1761556241288,-534.09559345,0.00037016,28]
[392484639,1761556241297,-500.0,0.00037016,2]
[392484640,1761556241307,-500.0,0.00037016,2]